fUSD/lending_fUSD_20250812
["ID","MTS","AMOUNT","RATE_DAILY","PERIOD"]
[378789365,1755017395906,-1389.22,0.00044383,120]
[378789366,1755017395932,-576.88,0.00044383,120]
[378789367,1755017395962,-790.13,0.00044383,120]
[378789368,1755017395988,-766.33,0.00044383,120]
[378789369,1755017396018,-513.97,0.00044383,120]
[378789370,1755017396044,-487.87,0.00044383,120]
[378789371,1755017396076,-942.23,0.00044383,120]
[378789372,1755017396103,-813.76,0.00044383,120]
[378789373,1755017396129,-400.0,0.00044383,120]
[378789374,1755017396156,-887.78,0.00044383,120]
[378789375,1755017396183,-400.0,0.00044383,120]
[378789376,1755017396210,-679.88,0.00044383,120]
[378789377,1755017396237,-891.24,0.00044383,120]
[378789378,1755017396265,-400.0,0.00044383,120]
[378789379,1755017396292,-400.0,0.00044383,120]
[378789380,1755017396320,-400.0,0.00044383,120]
[378789381,1755017396346,-506.0,0.00044383,120]
[378789382,1755017396372,-400.0,0.00044383,120]
[378789383,1755017396399,-461.07,0.00044383,120]
[378789384,1755017396427,-908.54,0.00044383,120]
[378789385,1755017396456,-400.0,0.00044383,120]
[378789386,1755017396482,-865.53,0.00044383,120]
[378789387,1755017396509,-401.36,0.00044383,120]
[378789388,1755017396537,-597.81,0.00044383,120]
[378789389,1755017396564,-389.57,0.00044383,120]
[378789390,1755017396594,-844.1,0.00044383,120]
[378789391,1755017396622,-705.63,0.00044383,120]
[378789392,1755017396651,-555.62,0.00044383,120]
[378789393,1755017396678,-400.0,0.00044383,120]
[378789394,1755017396705,-400.0,0.00044383,120]
[378789395,1755017396733,-1224.45,0.00044383,120]
[378789396,1755017396762,-453.33,0.00044383,120]
[378789397,1755017396793,-400.0,0.00044383,120]
[378789398,1755017396821,-400.0,0.00044383,120]
[378789399,1755017396849,-537.49,0.00044383,120]
[378789400,1755017396878,-400.0,0.00044383,120]
[378789401,1755017396911,-683.5,0.00044383,120]
[378789402,1755017396940,-630.8,0.00044383,120]
[378789403,1755017396966,-630.33,0.00044383,120]
[378789404,1755017396993,-400.0,0.00044657,120]
[378789405,1755017397020,-435.72,0.00044657,120]
[378789406,1755017397050,-400.0,0.00044657,120]
[378789407,1755017397077,-573.37,0.00044657,120]
[378789408,1755017397108,-443.38,0.00044657,120]
[378789409,1755017397136,-400.0,0.00044657,120]
[378789410,1755017397165,-1389.22,0.00044657,120]
[378789411,1755017397192,-576.88,0.00044657,120]
[378789412,1755017397357,-790.13,0.00044657,120]
[378789413,1755017397384,-766.33,0.00044657,120]
[378789414,1755017397412,-513.97,0.00044657,120]
[378789415,1755017397438,-487.87,0.00044657,120]
[378789416,1755017397465,-942.23,0.00044657,120]
[378789417,1755017397492,-813.76,0.00044657,120]
[378789418,1755017397519,-887.78,0.00044657,120]
[378789419,1755017397546,-400.0,0.00044657,120]
[378789420,1755017397572,-891.24,0.00044657,120]
[378789421,1755017397601,-679.88,0.00044657,120]
[378789422,1755017397839,-400.0,0.00044657,120]
[378789423,1755017397869,-164.58597346,0.00044657,120]
[378789424,1755017397896,-400.0,0.00044657,120]
[378789425,1755017397922,-506.0,0.00044657,120]
[378789426,1755017397948,-400.0,0.00044657,120]
[378789427,1755017397975,-908.54,0.00044657,120]
[378789428,1755017398002,-865.53,0.00044657,120]
[378789429,1755017398028,-400.0,0.00044657,120]
[378789430,1755017398057,-401.36,0.00044657,120]
[378789431,1755017398083,-597.81,0.00044657,120]
[378789432,1755017398111,-844.1,0.00044657,120]
[378789433,1755017398136,-705.63,0.00044657,120]
[378789434,1755017398162,-555.62,0.00044657,120]
[378789435,1755017398197,-400.0,0.00044657,120]
[378789436,1755017398227,-400.0,0.00044657,120]
[378789437,1755017398255,-1224.45,0.00044657,120]
[378789438,1755017398284,-453.33,0.00044657,120]
[378789439,1755017398313,-400.0,0.00044657,120]
[378789440,1755017398341,-400.0,0.00044657,120]
[378789441,1755017398369,-400.0,0.00044657,120]
[378789442,1755017398397,-683.5,0.00044657,120]
[378789443,1755017398425,-630.8,0.00044657,120]
[378789444,1755017398452,-669.6595442,0.000448,120]
[378789445,1755017398480,-1784208.25886585,0.000449,120]
[378789446,1755017398547,-669.65954416,0.00044921,120]
[378789447,1755017398606,-153.201275,0.00044931,120]
[378789448,1755017398661,-160.269326,0.00044931,120]
[378789449,1755017398717,-426.62,0.00044931,120]
[378789450,1755017398777,-964.82,0.00044931,120]
[378789451,1755017398823,-310.77,0.00044931,120]
[378789452,1755017398869,-400.0,0.00044931,120]
[378789453,1755017398924,-553.91,0.00044931,120]
[378789454,1755017398972,-254.24665413,0.00044931,120]
[378789455,1755017399021,-400.0,0.00044931,120]
[378789456,1755017399080,-480.6,0.00044931,120]
[378789457,1755017399130,-192.5,0.00044931,120]
[378789458,1755017399175,-400.0,0.00044931,120]
[378789459,1755017399219,-796.32,0.00044931,120]
[378789460,1755017399264,-526.49,0.00044931,120]
[378789461,1755017399316,-400.0,0.00044931,120]
[378789462,1755017399366,-521.82,0.00044931,120]
[378789463,1755017399411,-401.78,0.00044931,120]
[378789464,1755017399455,-400.0,0.00044931,120]
[378789465,1755017399499,-456.31,0.00044931,120]
[378789466,1755017399542,-400.0,0.00044931,120]
[378789467,1755017399586,-400.0,0.00044931,120]
[378789468,1755017399617,-400.0,0.00044931,120]
[378789469,1755017399648,-449.81,0.00044931,120]
[378789470,1755017399676,-400.0,0.00044931,120]
[378789471,1755017399703,-449.78,0.00044931,120]
[378789472,1755017399729,-400.0,0.00044931,120]
[378789473,1755017399756,-612.29,0.00044931,120]
[378789474,1755017399785,-400.0,0.00044931,120]
[378789475,1755017399814,-245.08461781,0.00044931,120]
[378789476,1755017399841,-529.01,0.00044931,120]
[378789477,1755017399868,-476.26,0.00044931,120]
[378789478,1755017399895,-400.0,0.00044931,120]
[378789479,1755017400283,-665.65,0.00044931,120]
[378789480,1755017400346,-540.82,0.00044931,120]
[378789481,1755017400374,-540.62,0.00044931,120]
[378789482,1755017400402,-400.0,0.00044931,120]
[378789483,1755017400428,-400.0,0.00044931,120]
[378789484,1755017400456,-535.97,0.00044931,120]
[378789485,1755017400483,-638.78,0.00044931,120]
[378789486,1755017400508,-795.2,0.00044931,120]
[378789487,1755017400536,-496.08,0.00044931,120]
[378789488,1755017400566,-501.2,0.00044931,120]
[378789489,1755017400596,-493.07,0.00044931,120]
[378789490,1755017400624,-400.0,0.00044931,120]
[378789491,1755017400657,-400.0,0.00044931,120]
[378789492,1755017400688,-564.22,0.00044931,120]
[378789493,1755017400725,-570.87,0.00044931,120]
[378789494,1755017400758,-164.44,0.00044931,120]
[378789495,1755017400787,-425.77,0.00044931,120]
[378789496,1755017400820,-400.0,0.00044931,120]
[378789497,1755017400850,-400.0,0.00044931,120]
[378789498,1755017400880,-400.0,0.00044931,120]
[378789499,1755017400909,-424.28,0.00044931,120]
[378789500,1755017400940,-400.0,0.00044931,120]
[378789501,1755017400970,-445.44,0.00044931,120]
[378789502,1755017401001,-400.0,0.00044931,120]
[378789503,1755017401031,-412.63,0.00044931,120]
[378789504,1755017401062,-400.0,0.00044931,120]
[378789505,1755017401092,-400.0,0.00044931,120]
[378789506,1755017401120,-547.06,0.00044931,120]
[378789507,1755017401148,-400.0,0.00044931,120]
[378789508,1755017401176,-400.0,0.00044931,120]
[378789509,1755017401204,-400.0,0.00044931,120]
[378789510,1755017401234,-400.0,0.00044931,120]
[378789511,1755017401262,-400.0,0.00044931,120]
[378789512,1755017401290,-458.75,0.00044931,120]
[378789513,1755017401324,-400.0,0.00044931,120]
[378789514,1755017401353,-400.0,0.00044931,120]
[378789515,1755017401383,-400.0,0.00044931,120]
[378789516,1755017401412,-416.84,0.00044931,120]
[378789517,1755017401441,-400.0,0.00044931,120]
[378789518,1755017401470,-4244.54,0.00044931,120]
[378789519,1755017401499,-400.0,0.00044931,120]
[378789520,1755017401528,-522.59,0.00044931,120]
[378789521,1755017401556,-401.9,0.00044931,120]
[378789522,1755017401586,-810.37,0.00044931,120]
[378789523,1755017401618,-400.0,0.00044931,120]
[378789524,1755017401648,-569.18,0.00044931,120]
[378789525,1755017401677,-548.25,0.00044931,120]
[378789526,1755017401706,-432.13,0.00044931,120]
[378789527,1755017401735,-400.0,0.00044931,120]
[378789528,1755017401764,-400.0,0.00044931,120]
[378789529,1755017401794,-400.0,0.00044931,120]
[378789530,1755017401822,-460.02,0.00044931,120]
[378789531,1755017401852,-502.67,0.00044931,120]
[378789532,1755017401882,-1729.56,0.00044931,120]
[378789533,1755017401916,-414.14,0.00044931,120]
[378789534,1755017401946,-400.0,0.00044931,120]
[378789535,1755017401975,-400.0,0.00044931,120]
[378789536,1755017402005,-400.0,0.00044931,120]
[378789537,1755017402034,-192.13686618,0.00044931,120]
[378789538,1755017402064,-451.19,0.00044931,120]
[378789539,1755017402095,-551.68,0.00044931,120]
[378789540,1755017402125,-797.16,0.00044931,120]
[378789541,1755017402154,-164.490981,0.00044931,120]
[378789542,1755017402183,-400.0,0.00044931,120]
[378789543,1755017402212,-904.15,0.00044931,120]
[378789544,1755017402241,-400.0,0.00044931,120]
[378789545,1755017402272,-493.54,0.00044931,120]
[378789546,1755017402301,-400.0,0.00044931,120]
[378789547,1755017402329,-409.91,0.00044931,120]
[378789548,1755017402358,-400.0,0.00044931,120]
[378789549,1755017402388,-505.75,0.00044931,120]
[378789550,1755017402418,-647.35,0.00044931,120]
[378789551,1755017402448,-2069.36,0.00044931,120]
[378789552,1755017402479,-831.42,0.00044931,120]
[378789553,1755017402509,-434.93,0.00044931,120]
[378789554,1755017402540,-1300.19,0.00044931,120]
[378789555,1755017402577,-400.0,0.00044931,120]
[378789556,1755017402609,-461.21,0.00044931,120]
[378789557,1755017402640,-551.53,0.00044931,120]
[378789558,1755017402669,-1042.02,0.00044931,120]
[378789559,1755017402698,-574.29,0.00044931,120]
[378789560,1755017402728,-400.0,0.00044931,120]
[378789561,1755017402758,-436.43,0.00044931,120]
[378789562,1755017402969,-400.0,0.00044931,120]
[378789563,1755017403000,-400.0,0.00044931,120]
[378789564,1755017403030,-400.0,0.00044931,120]
[378789565,1755017403062,-527.27,0.00044931,120]
[378789566,1755017403094,-705.35,0.00044931,120]
[378789567,1755017403124,-400.0,0.00044931,120]
[378789568,1755017403154,-481.53,0.00044931,120]
[378789569,1755017403183,-963.02,0.00044931,120]
[378789570,1755017403213,-1599.78,0.00044931,120]
[378789571,1755017403244,-689.28,0.00044931,120]
[378789572,1755017403275,-762.77,0.00044931,120]
[378789573,1755017403305,-1145.68,0.00044931,120]
[378789574,1755017403336,-702.39,0.00044931,120]
[378789575,1755017403366,-400.0,0.00044931,120]
[378789576,1755017403396,-832.37,0.00044931,120]
[378789577,1755017403428,-400.0,0.00044931,120]
[378789579,1755017403459,-400.0,0.00044931,120]
[378789580,1755017403493,-402.19,0.00044931,120]
[378789581,1755017403524,-820.93,0.00044931,120]
[378789582,1755017403557,-952.98,0.00044931,120]
[378789583,1755017403588,-605.57,0.00044931,120]
[378789584,1755017403624,-977.35,0.00044931,120]
[378789585,1755017403655,-498.91,0.00044931,120]
[378789586,1755017403687,-524.54,0.00044931,120]
[378789587,1755017403717,-486.44,0.00044931,120]
[378789588,1755017403747,-970.08,0.00044931,120]
[378789589,1755017403778,-452.43,0.00044931,120]
[378789590,1755017403808,-444.37,0.00044931,120]
[378789591,1755017403837,-546.65,0.00044931,120]
[378789592,1755017403868,-400.0,0.00044931,120]
[378789593,1755017403898,-636.89,0.00044931,120]
[378789594,1755017403927,-541.47,0.00044931,120]
[378789595,1755017403957,-400.0,0.00044931,120]
[378789596,1755017403988,-501.79,0.00044931,120]
[378789597,1755017404018,-400.0,0.00044931,120]
[378789598,1755017404050,-400.0,0.00044931,120]
[378789599,1755017404081,-1766.23,0.00044931,120]
[378789600,1755017404110,-887.29,0.00044931,120]
[378789601,1755017404141,-675.76,0.00044931,120]
[378789602,1755017404171,-460.68,0.00044931,120]
[378789603,1755017404200,-747.73,0.00044931,120]
[378789604,1755017404230,-650.44,0.00044931,120]
[378789605,1755017404259,-794.18,0.00044931,120]
[378789606,1755017404287,-425.17,0.00044931,120]
[378789607,1755017404316,-594.65,0.00044931,120]
[378789608,1755017404345,-422.79,0.00044931,120]
[378789609,1755017404374,-737.41,0.00044931,120]
[378789610,1755017404404,-531.41,0.00044931,120]
[378789611,1755017404433,-435.72,0.00044931,120]
[378789612,1755017404462,-400.0,0.00044931,120]
[378789613,1755017404491,-573.37,0.00044931,120]
[378789614,1755017404520,-443.38,0.00044931,120]
[378789615,1755017404549,-400.0,0.00044931,120]
[378789616,1755017404580,-1389.22,0.00044931,120]
[378789617,1755017404611,-576.88,0.00044931,120]
[378789618,1755017404641,-790.13,0.00044931,120]
[378789619,1755017404671,-766.33,0.00044931,120]
[378789620,1755017404702,-942.23,0.00044931,120]
[378789621,1755017404732,-487.87,0.00044931,120]
[378789622,1755017404762,-513.97,0.00044931,120]
[378789623,1755017404791,-813.76,0.00044931,120]
[378789624,1755017404823,-887.78,0.00044931,120]
[378789625,1755017404852,-400.0,0.00044931,120]
[378789626,1755017404882,-891.24,0.00044931,120]
[378789627,1755017404912,-679.88,0.00044931,120]
[378789628,1755017404942,-400.0,0.00044931,120]
[378789629,1755017404974,-400.0,0.00044931,120]
[378789630,1755017405003,-506.0,0.00044931,120]
[378789631,1755017405032,-400.0,0.00044931,120]
[378789632,1755017405063,-908.54,0.00044931,120]
[378789633,1755017405092,-258.66561825,0.00044931,120]
[378789654,1755017425749,-569.66,0.00043835,120]
[378789655,1755017425780,-567.65,0.00043835,120]
[378789656,1755017425811,-400.0,0.00043835,120]
[378789657,1755017425842,-400.0,0.00043835,120]
[378789658,1755017425871,-400.0,0.00043835,120]
[378789659,1755017425900,-400.0,0.00043835,120]
[378789660,1755017425930,-597.39,0.00043835,120]
[378789661,1755017425959,-778.34,0.00043835,120]
[378789662,1755017425986,-357.68,0.00043835,120]
[378789663,1755017426014,-701.34,0.00043835,120]
[378789664,1755017426044,-400.0,0.00043835,120]
[378789665,1755017426076,-418.66,0.00043835,120]
[378789666,1755017426105,-400.0,0.00043835,120]
[378789667,1755017426135,-773.73,0.00043835,120]
[378789668,1755017426163,-400.0,0.00043835,120]
[378789669,1755017426406,-400.0,0.00043835,120]
[378789670,1755017426438,-400.0,0.00043835,120]
[378789671,1755017426469,-400.0,0.00043835,120]
[378789672,1755017426498,-805.87,0.00043835,120]
[378789673,1755017426526,-696.89,0.00043835,120]
[378789674,1755017426556,-791.96,0.00043835,120]
[378789675,1755017426588,-569.66,0.00044109,120]
[378789676,1755017426622,-567.65,0.00044109,120]
[378789677,1755017426652,-400.0,0.00044109,120]
[378789678,1755017426683,-400.0,0.00044109,120]
[378789679,1755017426712,-400.0,0.00044109,120]
[378789680,1755017426740,-400.0,0.00044109,120]
[378789681,1755017426772,-597.39,0.00044109,120]
[378789682,1755017426801,-778.34,0.00044109,120]
[378789683,1755017426831,-701.34,0.00044109,120]
[378789684,1755017426861,-400.0,0.00044109,120]
[378789685,1755017426892,-418.66,0.00044109,120]
[378789686,1755017426923,-400.0,0.00044109,120]
[378789687,1755017426955,-773.73,0.00044109,120]
[378789688,1755017426984,-400.0,0.00044109,120]
[378789689,1755017427015,-400.0,0.00044109,120]
[378789690,1755017427045,-400.0,0.00044109,120]
[378789691,1755017427076,-268.6633871,0.00044109,120]
[378789692,1755017427107,-805.87,0.00044109,120]
[378789693,1755017427135,-696.89,0.00044109,120]
[378789694,1755017427165,-791.96,0.00044109,120]
[378789695,1755017427195,-569.66,0.00044383,120]
[378789696,1755017427224,-567.65,0.00044383,120]
[378789697,1755017427252,-400.0,0.00044383,120]
[378789698,1755017427282,-400.0,0.00044383,120]
[378789699,1755017427311,-400.0,0.00044383,120]
[378789700,1755017427340,-182.81,0.00044383,120]
[378789701,1755017427369,-597.39,0.00044383,120]
[378789702,1755017427398,-778.34,0.00044383,120]
[378789703,1755017427428,-701.34,0.00044383,120]
[378789704,1755017427462,-400.0,0.00044383,120]
[378789705,1755017427491,-418.66,0.00044383,120]
[378789706,1755017427520,-773.73,0.00044383,120]
[378789707,1755017427549,-400.0,0.00044383,120]
[378789708,1755017427580,-400.0,0.00044383,120]
[378789709,1755017427612,-400.0,0.00044383,120]
[378789710,1755017427643,-805.87,0.00044383,120]
[378789711,1755017427675,-696.89,0.00044383,120]
[378789712,1755017427704,-791.96,0.00044383,120]
[378789713,1755017427735,-630.33,0.00044657,120]
[378789714,1755017427766,-569.66,0.00044657,120]
[378789715,1755017427796,-567.65,0.00044657,120]
[378789716,1755017427826,-400.0,0.00044657,120]
[378789717,1755017427855,-400.0,0.00044657,120]
[378789718,1755017427884,-400.0,0.00044657,120]
[378789719,1755017427914,-597.39,0.00044657,120]
[378789720,1755017427944,-778.34,0.00044657,120]
[378789721,1755017427973,-701.34,0.00044657,120]
[378789722,1755017428004,-400.0,0.00044657,120]
[378789723,1755017428034,-418.66,0.00044657,120]
[378789724,1755017428065,-400.0,0.00044657,120]
[378789725,1755017428096,-773.73,0.00044657,120]
[378789726,1755017428126,-439.39,0.00044657,120]
[378789727,1755017428156,-400.0,0.00044657,120]
[378789728,1755017428186,-805.87,0.00044657,120]
[378789729,1755017428215,-696.89,0.00044657,120]
[378789730,1755017428245,-606.86438175,0.00044931,120]
[378789731,1755017428281,-470.81,0.00044931,120]
[378789732,1755017428312,-401.36,0.00044931,120]
[378789733,1755017428342,-597.81,0.00044931,120]
[378789734,1755017428371,-844.1,0.00044931,120]
[378789735,1755017428399,-705.63,0.00044931,120]
[378789736,1755017428426,-555.62,0.00044931,120]
[378789737,1755017428454,-400.0,0.00044931,120]
[378789738,1755017428482,-523.24,0.00044931,120]
[378789739,1755017428511,-1224.45,0.00044931,120]
[378789740,1755017428540,-453.33,0.00044931,120]
[378789741,1755017428568,-400.0,0.00044931,120]
[378789742,1755017428599,-400.0,0.00044931,120]
[378789743,1755017428627,-400.0,0.00044931,120]
[378789744,1755017428656,-683.5,0.00044931,120]
[378789745,1755017428687,-630.8,0.00044931,120]
[378789746,1755017428714,-630.33,0.00044931,120]
[378789747,1755017428743,-569.66,0.00044931,120]
[378789748,1755017428772,-567.65,0.00044931,120]
[378789749,1755017428799,-400.0,0.00044931,120]
[378789750,1755017428829,-400.0,0.00044931,120]
[378789751,1755017428857,-400.0,0.00044931,120]
[378789752,1755017428886,-597.39,0.00044931,120]
[378789753,1755017428915,-778.34,0.00044931,120]
[378789754,1755017428944,-701.34,0.00044931,120]
[378789755,1755017428972,-484.51,0.00044931,120]
[378789756,1755017429002,-418.66,0.00044931,120]
[378789757,1755017429032,-400.0,0.00044931,120]
[378789758,1755017429065,-773.73,0.00044931,120]
[378789759,1755017429094,-400.0,0.00044931,120]
[378789760,1755017429136,-805.87,0.00044931,120]
[378789761,1755017429165,-696.89,0.00044931,120]
[378789762,1755017429194,-1580.76638666,0.0004498,120]
[378789763,1755017429224,-155.0,0.00045,120]
[378789764,1755017429252,-1139.0,0.00045,120]
[378789765,1755017429281,-10000.0,0.00045,120]
[378789766,1755017429311,-2000.0,0.00045,120]
[378789767,1755017429339,-503.30908306,0.00045,120]
[378789768,1755017429365,-1795.60377858,0.00045,120]
[378789769,1755017429393,-150.0,0.00045,85]
[378789770,1755017429420,-300.0,0.00045,120]
[378789771,1755017429448,-371.2,0.00045041,120]
[378789772,1755017429476,-669.65954416,0.00045042,120]
[378789773,1755017429504,-669.65954416,0.00045163,120]
[378789774,1755017429532,-964.82,0.00045205,120]
[378789775,1755017429559,-493.10165961,0.00045205,120]
[378789776,1755017429592,-553.91,0.00045205,120]
[378789777,1755017429622,-400.0,0.00045205,120]
[378789778,1755017429652,-521.82,0.00045205,120]
[378789779,1755017429681,-401.78,0.00045205,120]
[378789780,1755017429710,-400.0,0.00045205,120]
[378789781,1755017429737,-221.67561795,0.00045205,120]
[378789782,1755017429767,-400.0,0.00045205,120]
[378789783,1755017429796,-449.81,0.00045205,120]
[378789784,1755017429953,-449.78,0.00045205,120]
[378789785,1755017430020,-612.29,0.00045205,120]
[378789786,1755017430050,-400.0,0.00045205,120]
[378789787,1755017430081,-529.01,0.00045205,120]
[378789788,1755017430110,-476.26,0.00045205,120]
[378789789,1755017430138,-400.0,0.00045205,120]
[378789790,1755017430166,-665.65,0.00045205,120]
[378789791,1755017430194,-540.82,0.00045205,120]
[378789792,1755017430221,-540.62,0.00045205,120]
[378789793,1755017430249,-400.0,0.00045205,120]
[378789794,1755017430276,-243.7,0.00045205,120]
[378789795,1755017430303,-535.97,0.00045205,120]
[378789796,1755017430331,-638.78,0.00045205,120]
[378789797,1755017430358,-795.2,0.00045205,120]
[378789798,1755017430386,-496.08,0.00045205,120]
[378789799,1755017430415,-501.2,0.00045205,120]
[378789800,1755017430445,-493.07,0.00045205,120]
[378789801,1755017430473,-400.0,0.00045205,120]
[378789802,1755017430501,-185.05,0.00045205,120]
[378789803,1755017430529,-564.22,0.00045205,120]
[378789804,1755017430558,-570.87,0.00045205,120]
[378789805,1755017430588,-425.77,0.00045205,120]
[378789806,1755017430619,-400.0,0.00045205,120]
[378789807,1755017430648,-400.0,0.00045205,120]
[378789808,1755017430676,-400.0,0.00045205,120]
[378789809,1755017430702,-424.28,0.00045205,120]
[378789810,1755017430729,-400.0,0.00045205,120]
[378789811,1755017430757,-445.44,0.00045205,120]
[378789812,1755017430784,-400.0,0.00045205,120]
[378789813,1755017430814,-412.63,0.00045205,120]
[378789814,1755017430841,-400.0,0.00045205,120]
[378789815,1755017430869,-400.0,0.00045205,120]
[378789816,1755017430896,-547.06,0.00045205,120]
[378789817,1755017430924,-400.0,0.00045205,120]
[378789818,1755017430951,-400.0,0.00045205,120]
[378789819,1755017430979,-400.0,0.00045205,120]
[378789820,1755017431007,-400.0,0.00045205,120]
[378789821,1755017431035,-400.0,0.00045205,120]
[378789822,1755017431064,-458.75,0.00045205,120]
[378789823,1755017431093,-400.0,0.00045205,120]
[378789824,1755017431121,-400.0,0.00045205,120]
[378789825,1755017431150,-400.0,0.00045205,120]
[378789826,1755017431179,-416.84,0.00045205,120]
[378789827,1755017431207,-400.0,0.00045205,120]
[378789828,1755017431234,-4244.54,0.00045205,120]
[378789829,1755017431269,-400.0,0.00045205,120]
[378789830,1755017431298,-522.59,0.00045205,120]
[378789831,1755017431327,-401.9,0.00045205,120]
[378789832,1755017431355,-810.37,0.00045205,120]
[378789833,1755017431382,-400.0,0.00045205,120]
[378789834,1755017431410,-569.18,0.00045205,120]
[378789835,1755017431437,-432.13,0.00045205,120]
[378789836,1755017431464,-400.0,0.00045205,120]
[378789837,1755017431491,-400.0,0.00045205,120]
[378789838,1755017431518,-400.0,0.00045205,120]
[378789839,1755017431545,-502.67,0.00045205,120]
[378789840,1755017431574,-400.0,0.00045205,120]
[378789841,1755017431604,-400.0,0.00045205,120]
[378789842,1755017431634,-234.50299691,0.00045205,120]
[378789843,1755017431663,-451.19,0.00045205,120]
[378789844,1755017431694,-329.39,0.00045205,120]
[378789845,1755017431723,-493.54,0.00045205,120]
[378789846,1755017431752,-442.68,0.00045205,120]
[378789847,1755017431782,-647.35,0.00045205,120]
[378789848,1755017431810,-400.0,0.00045205,120]
[378789849,1755017431837,-282.98,0.00045205,120]
[378789850,1755017431868,-436.43,0.00045205,120]
[378789851,1755017431898,-400.0,0.00045205,120]
[378789852,1755017431927,-400.0,0.00045205,120]
[378789853,1755017431958,-527.27,0.00045205,120]
[378789854,1755017431987,-400.0,0.00045205,120]
[378789855,1755017432017,-689.28,0.00045205,120]
[378789856,1755017432048,-762.77,0.00045205,120]
[378789857,1755017432081,-1145.68,0.00045205,120]
[378789858,1755017432112,-832.37,0.00045205,120]
[378789859,1755017432144,-400.0,0.00045205,120]
[378789860,1755017432175,-400.0,0.00045205,120]
[378789861,1755017432207,-402.19,0.00045205,120]
[378789863,1755017432238,-820.93,0.00045205,120]
[378789865,1755017432268,-605.57,0.00045205,120]
[378789866,1755017432298,-498.91,0.00045205,120]
[378789869,1755017432330,-524.54,0.00045205,120]
[378789871,1755017432361,-486.44,0.00045205,120]
[378789872,1755017432392,-970.08,0.00045205,120]
[378789873,1755017432422,-452.43,0.00045205,120]
[378789874,1755017432452,-444.37,0.00045205,120]
[378789875,1755017432481,-546.65,0.00045205,120]
[378789876,1755017432512,-400.0,0.00045205,120]
[378789877,1755017432543,-636.89,0.00045205,120]
[378789878,1755017432574,-541.47,0.00045205,120]
[378789879,1755017432607,-400.0,0.00045205,120]
[378789880,1755017432638,-501.79,0.00045205,120]
[378789881,1755017432669,-400.0,0.00045205,120]
[378789882,1755017432702,-400.0,0.00045205,120]
[378789883,1755017432733,-1766.23,0.00045205,120]
[378789884,1755017432764,-887.29,0.00045205,120]
[378789885,1755017432795,-675.76,0.00045205,120]
[378789886,1755017432828,-460.68,0.00045205,120]
[378789887,1755017432860,-747.73,0.00045205,120]
[378789888,1755017432891,-650.44,0.00045205,120]
[378789889,1755017432921,-794.18,0.00045205,120]
[378789890,1755017432951,-425.17,0.00045205,120]